[Event "Titled Tuesday Blitz November 08 Late 2022"]
[White "Moskvin, Anatoly"]
[Black "Hauge, Lars Oskar"]
[WhiteFideId "24199990"]
[BlackFideId "1509276"]
[WhiteElo "2079"]
[BlackElo "2431"]
[Result "1/2-1/2"]
[Round "04"]
[TimeControl "180+1"]
[Date "2022.11.08"]
[WhiteClock "0:00:12"]
[BlackClock "0:00:10"]

1. e4 {[%clk 0:02:59]}  c5 {[%clk 0:02:59]} 2. Nf3 {[%clk 0:03:00]}  Nc6 {[%clk 0:03:00]} 3. g3 {[%clk 0:02:59]}  Nf6 {[%clk 0:02:56]} 4. d3 {[%clk 0:03:00]}  d5 {[%clk 0:02:56]} 5. exd5 {[%clk 0:03:00]}  Nxd5 {[%clk 0:02:57]} 6. Bg2 {[%clk 0:03:00]}  g6 {[%clk 0:02:57]} 7. O-O {[%clk 0:03:01]}  Bg7 {[%clk 0:02:57]} 8. Re1 {[%clk 0:02:57]}  O-O {[%clk 0:02:57]} 9. Nbd2 {[%clk 0:02:58]}  Re8 {[%clk 0:02:57]} 10. Ne4 {[%clk 0:02:58]}  b6 {[%clk 0:02:56]} 11. h3 {[%clk 0:02:56]}  e5 {[%clk 0:02:34]} 12. Bg5 {[%clk 0:02:27]}  f6 {[%clk 0:02:30]} 13. Bd2 {[%clk 0:02:27]}  Be6 {[%clk 0:02:23]} 14. a4 {[%clk 0:02:27]}  Qe7 {[%clk 0:02:14]} 15. Qc1 {[%clk 0:02:19]}  Rad8 {[%clk 0:02:11]} 16. Bh6 {[%clk 0:02:10]}  Bh8 {[%clk 0:02:11]} 17. Nc3 {[%clk 0:02:01]}  Qf7 {[%clk 0:02:01]} 18. Bd2 {[%clk 0:01:52]}  Bg7 {[%clk 0:02:01]} 19. Bh6 {[%clk 0:01:50]}  Bh8 {[%clk 0:02:01]} 20. Bd2 {[%clk 0:01:51]}  Rd7 {[%clk 0:02:01]} 21. Ne4 {[%clk 0:01:45]}  Qe7 {[%clk 0:01:54]} 22. Nc3 {[%clk 0:01:44]}  Red8 {[%clk 0:01:52]} 23. Nb5 {[%clk 0:01:35]}  Bg7 {[%clk 0:01:50]} 24. Na3 {[%clk 0:01:35]}  Qf8 {[%clk 0:01:47]} 25. Nc4 {[%clk 0:01:35]}  h6 {[%clk 0:01:46]} 26. Ne3 {[%clk 0:01:16]}  Kh7 {[%clk 0:01:45]} 27. Ng4 {[%clk 0:01:12]}  Re8 {[%clk 0:01:43]} 28. Nh4 {[%clk 0:00:58]}  f5 {[%clk 0:01:41]} 29. Ne3 {[%clk 0:00:55]}  Nd4 {[%clk 0:01:38]} 30. Bc3 {[%clk 0:00:49]}  Qf7 {[%clk 0:01:33]} 31. Nc4 {[%clk 0:00:36]}  e4 {[%clk 0:01:08]} 32. Bxd4 {[%clk 0:00:24]}  Bxd4 {[%clk 0:01:07]} 33. c3 {[%clk 0:00:24]}  Bg7 {[%clk 0:00:43]} 34. dxe4 {[%clk 0:00:24]}  Nxc3 {[%clk 0:00:43]} 35. bxc3 {[%clk 0:00:20]}  Bxc4 {[%clk 0:00:43]} 36. exf5 {[%clk 0:00:20]}  Rxe1+ {[%clk 0:00:43]} 37. Qxe1 {[%clk 0:00:21]}  gxf5 {[%clk 0:00:44]} 38. Nxf5 {[%clk 0:00:20]}  Bf6 {[%clk 0:00:35]} 39. Be4 {[%clk 0:00:21]}  Kh8 {[%clk 0:00:34]} 40. Rd1 {[%clk 0:00:21]}  h5 {[%clk 0:00:31]} 41. Rxd7 {[%clk 0:00:20]}  Qxd7 {[%clk 0:00:32]} 42. Qe3 {[%clk 0:00:20]}  Kg8 {[%clk 0:00:26]} 43. Qh6 {[%clk 0:00:19]}  Bxc3 {[%clk 0:00:26]} 44. Qg6+ {[%clk 0:00:19]}  Kf8 {[%clk 0:00:26]} 45. Nd6 {[%clk 0:00:17]}  Be6 {[%clk 0:00:20]} 46. Bf5 {[%clk 0:00:15]}  Qxd6 {[%clk 0:00:15]} 47. Bxe6 {[%clk 0:00:15]}  Ke7 {[%clk 0:00:15]} 48. Qf7+ {[%clk 0:00:15]}  Kd8 {[%clk 0:00:16]} 49. Bc4 {[%clk 0:00:15]}  a5 {[%clk 0:00:14]} 50. Bb5 {[%clk 0:00:14]}  Bd4 {[%clk 0:00:14]} 51. Qe8+ {[%clk 0:00:15]}  Kc7 {[%clk 0:00:14]} 52. Qf7+ {[%clk 0:00:15]}  Kb8 {[%clk 0:00:14]} 53. Qe8+ {[%clk 0:00:16]}  Kb7 {[%clk 0:00:15]} 54. Qf7+ {[%clk 0:00:16]}  Ka8 {[%clk 0:00:13]} 55. Qe8+ {[%clk 0:00:16]}  Ka7 {[%clk 0:00:14]} 56. Qf7+ {[%clk 0:00:16]}  Kb8 {[%clk 0:00:15]} 57. Qe8+ {[%clk 0:00:17]}  Kb7 {[%clk 0:00:15]} 58. Qf7+ {[%clk 0:00:18]}  Qc7 {[%clk 0:00:16]} 59. Qd5+ {[%clk 0:00:14]}  Ka7 {[%clk 0:00:16]} 60. Kg2 {[%clk 0:00:15]}  Qe7 {[%clk 0:00:13]} 61. g4 {[%clk 0:00:10]}  hxg4 {[%clk 0:00:11]} 62. hxg4 {[%clk 0:00:11]}  Kb8 {[%clk 0:00:11]} 63. Qg8+ {[%clk 0:00:10]}  Kc7 {[%clk 0:00:11]} 64. Qd5 {[%clk 0:00:11]}  Qf6 {[%clk 0:00:10]} 65. Qd7+ {[%clk 0:00:11]}  Kb8 {[%clk 0:00:10]} 66. Qe8+ {[%clk 0:00:11]}  Kb7 {[%clk 0:00:09]} 67. Qd7+ {[%clk 0:00:12]}  Kb8 {[%clk 0:00:09]} 68. Qe8+ {[%clk 0:00:11]}  Kc7 {[%clk 0:00:10]} 69. Qd7+ {[%clk 0:00:12]}  Kb8 {[%clk 0:00:10]} 1/2-1/2


[Site "https://www.chess.com"]

[Event "Titled Tuesday Blitz November 08 Late 2022"]
[White "Mr_Penings"]
[Black "Girsh, Daniel"]
[BlackFideId "30949190"]
[WhiteElo "2691"]
[BlackElo "2075"]
[Result "1-0"]
[Round "04"]
[TimeControl "180+1"]
[Date "2022.11.09"]
[WhiteClock "0:00:09"]
[BlackClock "0:00:10"]

1. c4 {[%clk 0:03:00]}  Nf6 {[%clk 0:02:59]} 2. Nc3 {[%clk 0:03:00]}  g6 {[%clk 0:03:00]} 3. e4 {[%clk 0:03:00]}  Bg7 {[%clk 0:03:00]} 4. g3 {[%clk 0:03:00]}  O-O {[%clk 0:03:01]} 5. Bg2 {[%clk 0:03:01]}  d6 {[%clk 0:03:01]} 6. Nge2 {[%clk 0:03:01]}  c5 {[%clk 0:03:00]} 7. O-O {[%clk 0:03:02]}  Nc6 {[%clk 0:02:59]} 8. d3 {[%clk 0:03:02]}  Ne8 {[%clk 0:02:52]} 9. Be3 {[%clk 0:03:00]}  Nc7 {[%clk 0:02:52]} 10. d4 {[%clk 0:03:00]}  cxd4 {[%clk 0:02:49]} 11. Nxd4 {[%clk 0:03:01]}  Bd7 {[%clk 0:02:49]} 12. Rc1 {[%clk 0:02:39]}  Rc8 {[%clk 0:02:43]} 13. b3 {[%clk 0:02:36]}  Ne6 {[%clk 0:02:43]} 14. Nde2 {[%clk 0:02:34]}  Nc5 {[%clk 0:02:41]} 15. Qd2 {[%clk 0:02:25]}  a5 {[%clk 0:02:41]} 16. Nd5 {[%clk 0:02:15]}  Be6 {[%clk 0:02:27]} 17. Nef4 {[%clk 0:02:09]}  Bd7 {[%clk 0:02:13]} 18. h4 {[%clk 0:02:07]}  e6 {[%clk 0:02:11]} 19. Nc3 {[%clk 0:02:07]}  Qe7 {[%clk 0:01:45]} 20. Rfd1 {[%clk 0:02:07]}  Be5 {[%clk 0:01:42]} 21. Nb5 {[%clk 0:02:04]}  Bxf4 {[%clk 0:01:24]} 22. Bxf4 {[%clk 0:02:02]}  e5 {[%clk 0:01:21]} 23. Bg5 {[%clk 0:01:59]}  f6 {[%clk 0:01:18]} 24. Bh6 {[%clk 0:01:59]}  Rfd8 {[%clk 0:01:18]} 25. Qxd6 {[%clk 0:01:58]}  Bg4 {[%clk 0:01:12]} 26. Qxe7 {[%clk 0:01:53]}  Nxe7 {[%clk 0:01:12]} 27. f3 {[%clk 0:01:47]}  Be6 {[%clk 0:01:12]} 28. Be3 {[%clk 0:01:47]}  b6 {[%clk 0:01:10]} 29. f4 {[%clk 0:01:31]}  Nc6 {[%clk 0:01:10]} 30. f5 {[%clk 0:01:00]}  Bf7 {[%clk 0:01:06]} 31. Nd6 {[%clk 0:00:55]}  Rb8 {[%clk 0:00:58]} 32. Nxf7 {[%clk 0:00:50]}  Kxf7 {[%clk 0:00:58]} 33. Rf1 {[%clk 0:00:38]}  Nd3 {[%clk 0:00:56]} 34. Rc2 {[%clk 0:00:33]}  Ncb4 {[%clk 0:00:56]} 35. Re2 {[%clk 0:00:32]}  Kg7 {[%clk 0:00:50]} 36. g4 {[%clk 0:00:32]}  Rb7 {[%clk 0:00:43]} 37. g5 {[%clk 0:00:33]}  gxf5 {[%clk 0:00:33]} 38. gxf6+ {[%clk 0:00:32]}  Kf7 {[%clk 0:00:29]} 39. Rxf5 {[%clk 0:00:32]}  Rg8 {[%clk 0:00:28]} 40. Kh2 {[%clk 0:00:31]}  Rg4 {[%clk 0:00:23]} 41. Bf3 {[%clk 0:00:30]}  Rg8 {[%clk 0:00:14]} 42. Bh5+ {[%clk 0:00:30]}  Ke6 {[%clk 0:00:15]} 43. f7 {[%clk 0:00:30]}  Rf8 {[%clk 0:00:13]} 44. Bh6 {[%clk 0:00:21]}  Rfxf7 {[%clk 0:00:14]} 45. Bxf7+ {[%clk 0:00:21]}  Rxf7 {[%clk 0:00:15]} 46. Rxf7 {[%clk 0:00:19]}  Kxf7 {[%clk 0:00:15]} 47. a3 {[%clk 0:00:19]}  Nc6 {[%clk 0:00:15]} 48. Be3 {[%clk 0:00:19]}  Nc5 {[%clk 0:00:14]} 49. Bxc5 {[%clk 0:00:18]}  bxc5 {[%clk 0:00:15]} 50. Re3 {[%clk 0:00:18]}  Nd4 {[%clk 0:00:15]} 51. Kg3 {[%clk 0:00:18]}  Nc2 {[%clk 0:00:14]} 52. Rd3 {[%clk 0:00:17]}  Nd4 {[%clk 0:00:13]} 53. Kg4 {[%clk 0:00:16]}  Kg6 {[%clk 0:00:13]} 54. h5+ {[%clk 0:00:16]}  Kf6 {[%clk 0:00:13]} 55. Rd1 {[%clk 0:00:13]}  Ke6 {[%clk 0:00:12]} 56. Kg5 {[%clk 0:00:12]}  Nxb3 {[%clk 0:00:12]} 57. Kh6 {[%clk 0:00:12]}  Nd4 {[%clk 0:00:11]} 58. Rf1 {[%clk 0:00:11]}  Ne2 {[%clk 0:00:08]} 59. Kxh7 {[%clk 0:00:09]}  Ng3 {[%clk 0:00:08]} 60. Rb1 {[%clk 0:00:06]}  Nxh5 {[%clk 0:00:08]} 61. Rb6+ {[%clk 0:00:06]}  Kd7 {[%clk 0:00:08]} 62. Kg6 {[%clk 0:00:05]}  Nf4+ {[%clk 0:00:08]} 63. Kf5 {[%clk 0:00:06]}  Nd3 {[%clk 0:00:08]} 64. Rb5 {[%clk 0:00:04]}  Kd6 {[%clk 0:00:07]} 65. Rxa5 {[%clk 0:00:04]}  Nb2 {[%clk 0:00:08]} 66. Ra6+ {[%clk 0:00:04]}  Kc7 {[%clk 0:00:08]} 67. Kxe5 {[%clk 0:00:04]}  Nxc4+ {[%clk 0:00:09]} 68. Kf6 {[%clk 0:00:04]}  Kb7 {[%clk 0:00:08]} 69. Ra4 {[%clk 0:00:04]}  Nb6 {[%clk 0:00:07]} 70. Ra5 {[%clk 0:00:04]}  c4 {[%clk 0:00:07]} 71. Kf5 {[%clk 0:00:01]}  Kc6 {[%clk 0:00:06]} 72. Ra7 {[%clk 0:00:01]}  c3 {[%clk 0:00:06]} 73. Rh7 {[%clk 0:00:02]}  Nc4 {[%clk 0:00:05]} 74. Rh1 {[%clk 0:00:03]}  Nd2 {[%clk 0:00:04]} 75. Rc1 {[%clk 0:00:03]}  Kb5 {[%clk 0:00:03]} 76. Rxc3 {[%clk 0:00:04]}  Nb1 {[%clk 0:00:03]} 77. Re3 {[%clk 0:00:04]}  Ka4 {[%clk 0:00:03]} 78. e5 {[%clk 0:00:04]}  Nc3 {[%clk 0:00:03]} 79. e6 {[%clk 0:00:05]}  Nd5 {[%clk 0:00:04]} 80. Re4+ {[%clk 0:00:05]}  Kxa3 {[%clk 0:00:04]} 81. e7 {[%clk 0:00:05]}  Nxe7+ {[%clk 0:00:04]} 82. Rxe7 {[%clk 0:00:06]}  Kb4 {[%clk 0:00:04]} 83. Rc7 {[%clk 0:00:07]}  Kb5 {[%clk 0:00:05]} 84. Ke4 {[%clk 0:00:07]}  Kb6 {[%clk 0:00:06]} 85. Rc1 {[%clk 0:00:07]}  Kb5 {[%clk 0:00:06]} 86. Kd4 {[%clk 0:00:08]}  Kb4 {[%clk 0:00:07]} 87. Rb1+ {[%clk 0:00:08]}  Ka3 {[%clk 0:00:08]} 88. Kc3 {[%clk 0:00:09]}  Ka2 {[%clk 0:00:09]} 89. Rb8 {[%clk 0:00:09]}  Ka3 {[%clk 0:00:10]} 90. Ra8# {[%clk 0:00:09]} 1-0


[Site "https://www.chess.com"]

[Event "Titled Tuesday Blitz November 08 Late 2022"]
[White "O`Gorman, Tom"]
[Black "Mikhalsky, Vladimir"]
[WhiteFideId "2508249"]
[BlackFideId "14144352"]
[WhiteElo "2271"]
[BlackElo "2271"]
[Result "0-1"]
[Round "04"]
[TimeControl "180+1"]
[Date "2022.11.09"]
[WhiteClock "0:01:19"]
[BlackClock "0:02:28"]

1. e4 {[%clk 0:03:00]}  g6 {[%clk 0:02:58]} 2. d4 {[%clk 0:03:00]}  Bg7 {[%clk 0:02:58]} 3. Nc3 {[%clk 0:02:55]}  d6 {[%clk 0:02:58]} 4. Be2 {[%clk 0:02:53]}  a6 {[%clk 0:02:58]} 5. Be3 {[%clk 0:02:49]}  b5 {[%clk 0:02:57]} 6. Qd2 {[%clk 0:02:49]}  Nf6 {[%clk 0:02:55]} 7. f3 {[%clk 0:02:46]}  b4 {[%clk 0:02:53]} 8. Nd1 {[%clk 0:02:45]}  a5 {[%clk 0:02:52]} 9. g4 {[%clk 0:02:41]}  Ba6 {[%clk 0:02:48]} 10. h4 {[%clk 0:02:39]}  h5 {[%clk 0:02:47]} 11. g5 {[%clk 0:02:38]}  Nfd7 {[%clk 0:02:47]} 12. f4 {[%clk 0:02:37]}  c5 {[%clk 0:02:46]} 13. Nf2 {[%clk 0:02:34]}  Nc6 {[%clk 0:02:44]} 14. Nf3 {[%clk 0:02:23]}  Bxe2 {[%clk 0:02:43]} 15. Kxe2 {[%clk 0:02:22]}  cxd4 {[%clk 0:02:42]} 16. Nxd4 {[%clk 0:02:21]}  Nxd4+ {[%clk 0:02:41]} 17. Bxd4 {[%clk 0:02:21]}  e5 {[%clk 0:02:41]} 18. fxe5 {[%clk 0:02:13]}  Nxe5 {[%clk 0:02:41]} 19. Rae1 {[%clk 0:01:43]}  O-O {[%clk 0:02:39]} 20. b3 {[%clk 0:01:32]}  Re8 {[%clk 0:02:37]} 21. Rh3 {[%clk 0:01:31]}  Qc8 {[%clk 0:02:33]} 22. Kd1 {[%clk 0:01:24]}  a4 {[%clk 0:02:30]} 23. Qxb4 {[%clk 0:01:19]}  Nc6 {[%clk 0:02:28]} 0-1


[Site "https://www.chess.com"]

[Event "Titled Tuesday Blitz November 08 Late 2022"]
[White "Papayan, Oleg"]
[Black "Young, Ryan"]
[WhiteFideId "4193911"]
[BlackFideId "2049945"]
[WhiteElo "2153"]
[BlackElo "2280"]
[Result "1/2-1/2"]
[Round "04"]
[TimeControl "180+1"]
[Date "2022.11.09"]
[WhiteClock "0:00:03"]
[BlackClock "0:00:09"]

1. e4 {[%clk 0:03:00]}  e5 {[%clk 0:03:00]} 2. Nf3 {[%clk 0:03:00]}  Nc6 {[%clk 0:03:00]} 3. Bb5 {[%clk 0:02:59]}  a6 {[%clk 0:03:01]} 4. Bxc6 {[%clk 0:03:00]}  dxc6 {[%clk 0:03:01]} 5. O-O {[%clk 0:03:01]}  Bg4 {[%clk 0:03:02]} 6. h3 {[%clk 0:03:00]}  h5 {[%clk 0:03:02]} 7. d3 {[%clk 0:03:01]}  Qf6 {[%clk 0:03:03]} 8. Nbd2 {[%clk 0:03:01]}  g5 {[%clk 0:03:02]} 9. Re1 {[%clk 0:02:54]}  Be6 {[%clk 0:02:52]} 10. Nc4 {[%clk 0:02:21]}  g4 {[%clk 0:02:31]} 11. Nh2 {[%clk 0:02:21]}  gxh3 {[%clk 0:02:26]} 12. Qf3 {[%clk 0:02:22]}  Bxc4 {[%clk 0:02:12]} 13. dxc4 {[%clk 0:02:18]}  hxg2 {[%clk 0:02:01]} 14. Qxf6 {[%clk 0:02:01]}  Nxf6 {[%clk 0:02:00]} 15. Kxg2 {[%clk 0:02:02]}  Rg8+ {[%clk 0:01:58]} 16. Kh3 {[%clk 0:02:02]}  Bd6 {[%clk 0:01:49]} 17. Be3 {[%clk 0:01:55]}  O-O-O {[%clk 0:01:47]} 18. f3 {[%clk 0:01:44]}  Kd7 {[%clk 0:01:12]} 19. Rg1 {[%clk 0:01:40]}  Ke6 {[%clk 0:01:12]} 20. Kh4 {[%clk 0:01:31]}  Be7 {[%clk 0:00:56]} 21. Kh3 {[%clk 0:01:13]}  Nd7 {[%clk 0:00:41]} 22. b3 {[%clk 0:00:36]}  Bc5 {[%clk 0:00:30]} 23. Bxc5 {[%clk 0:00:25]}  Nxc5 {[%clk 0:00:30]} 24. Rxg8 {[%clk 0:00:17]}  Rxg8 {[%clk 0:00:28]} 25. Rd1 {[%clk 0:00:18]}  Nd7 {[%clk 0:00:19]} 26. Rd2 {[%clk 0:00:17]}  Nf6 {[%clk 0:00:19]} 27. Kh4 {[%clk 0:00:18]}  Ke7 {[%clk 0:00:19]} 28. Nf1 {[%clk 0:00:16]}  Rg1 {[%clk 0:00:19]} 29. Ng3 {[%clk 0:00:16]}  Ra1 {[%clk 0:00:20]} 30. a4 {[%clk 0:00:16]}  Rg1 {[%clk 0:00:16]} 31. Rh2 {[%clk 0:00:14]}  Rc1 {[%clk 0:00:15]} 32. Nxh5 {[%clk 0:00:14]}  Nxh5 {[%clk 0:00:14]} 33. Kxh5 {[%clk 0:00:15]}  Rf1 {[%clk 0:00:14]} 34. Kg4 {[%clk 0:00:15]}  Rg1+ {[%clk 0:00:14]} 35. Kf5 {[%clk 0:00:13]}  Rf1 {[%clk 0:00:12]} 36. Kxe5 {[%clk 0:00:11]}  Rxf3 {[%clk 0:00:12]} 37. Rd2 {[%clk 0:00:09]}  Rc3 {[%clk 0:00:12]} 38. Kd4 {[%clk 0:00:09]}  Rh3 {[%clk 0:00:12]} 39. Ke5 {[%clk 0:00:09]}  b6 {[%clk 0:00:12]} 40. Kd4 {[%clk 0:00:08]}  Rh4 {[%clk 0:00:12]} 41. Ke5 {[%clk 0:00:07]}  Rh5+ {[%clk 0:00:11]} 42. Kd4 {[%clk 0:00:07]}  c5+ {[%clk 0:00:11]} 43. Ke3 {[%clk 0:00:07]}  Rh3+ {[%clk 0:00:12]} 44. Kf4 {[%clk 0:00:08]}  Rh4+ {[%clk 0:00:12]} 45. Kf5 {[%clk 0:00:08]}  Rh5+ {[%clk 0:00:12]} 46. Kg4 {[%clk 0:00:08]}  Rh1 {[%clk 0:00:12]} 47. Kf5 {[%clk 0:00:06]}  Re1 {[%clk 0:00:12]} 48. Ke5 {[%clk 0:00:06]}  Rh1 {[%clk 0:00:12]} 49. Kd5 {[%clk 0:00:06]}  Kd7 {[%clk 0:00:11]} 50. Ke5+ {[%clk 0:00:06]}  Ke7 {[%clk 0:00:12]} 51. Kd5 {[%clk 0:00:06]}  Rh6 {[%clk 0:00:11]} 52. e5 {[%clk 0:00:05]}  c6+ {[%clk 0:00:11]} 53. Ke4 {[%clk 0:00:06]}  Rh4+ {[%clk 0:00:11]} 54. Kf5 {[%clk 0:00:06]}  Rh5+ {[%clk 0:00:11]} 55. Kf4 {[%clk 0:00:06]}  Rh6 {[%clk 0:00:11]} 56. Kg5 {[%clk 0:00:05]}  Rg6+ {[%clk 0:00:11]} 57. Kf5 {[%clk 0:00:06]}  Re6 {[%clk 0:00:12]} 58. Rh2 {[%clk 0:00:05]}  Rg6 {[%clk 0:00:12]} 59. Rh8 {[%clk 0:00:05]}  Rg2 {[%clk 0:00:12]} 60. Rc8 {[%clk 0:00:04]}  Kd7 {[%clk 0:00:13]} 61. Rb8 {[%clk 0:00:04]}  Kc7 {[%clk 0:00:13]} 62. Rf8 {[%clk 0:00:04]}  Rxc2 {[%clk 0:00:12]} 63. Rxf7+ {[%clk 0:00:05]}  Kd8 {[%clk 0:00:13]} 64. e6 {[%clk 0:00:06]}  Rf2+ {[%clk 0:00:13]} 65. Kg6 {[%clk 0:00:05]}  Ke8 {[%clk 0:00:13]} 66. Ra7 {[%clk 0:00:05]}  Rf3 {[%clk 0:00:10]} 67. Rxa6 {[%clk 0:00:03]}  Rxb3 {[%clk 0:00:11]} 68. Kf6 {[%clk 0:00:03]}  Rf3+ {[%clk 0:00:10]} 69. Ke5 {[%clk 0:00:03]}  Rc3 {[%clk 0:00:10]} 70. Kd6 {[%clk 0:00:03]}  Rd3+ {[%clk 0:00:11]} 71. Kxc6 {[%clk 0:00:03]}  Ke7 {[%clk 0:00:11]} 72. Kxb6 {[%clk 0:00:03]}  Kxe6 {[%clk 0:00:10]} 73. Kxc5+ {[%clk 0:00:03]}  Kd7 {[%clk 0:00:11]} 74. a5 {[%clk 0:00:03]}  Kc7 {[%clk 0:00:11]} 75. Rc6+ {[%clk 0:00:03]}  Kb7 {[%clk 0:00:11]} 76. Rb6+ {[%clk 0:00:04]}  Ka7 {[%clk 0:00:12]} 77. Kb5 {[%clk 0:00:05]}  Rh3 {[%clk 0:00:12]} 78. c5 {[%clk 0:00:05]}  Rh1 {[%clk 0:00:12]} 79. Rg6 {[%clk 0:00:05]}  Rb1+ {[%clk 0:00:12]} 80. Kc6 {[%clk 0:00:05]}  Rc1 {[%clk 0:00:12]} 81. Rg7+ {[%clk 0:00:05]}  Ka6 {[%clk 0:00:13]} 82. Rg8 {[%clk 0:00:03]}  Kxa5 {[%clk 0:00:12]} 83. Ra8+ {[%clk 0:00:04]}  Kb4 {[%clk 0:00:13]} 84. Rb8+ {[%clk 0:00:01]}  Ka5 {[%clk 0:00:13]} 85. Rb5+ {[%clk 0:00:02]}  Ka6 {[%clk 0:00:12]} 86. Rb6+ {[%clk 0:00:02]}  Ka7 {[%clk 0:00:13]} 87. Kb5 {[%clk 0:00:02]}  Rb1+ {[%clk 0:00:13]} 88. Kc6 {[%clk 0:00:03]}  Rc1 {[%clk 0:00:12]} 89. Rb7+ {[%clk 0:00:03]}  Ka8 {[%clk 0:00:12]} 90. Rb2 {[%clk 0:00:04]}  Rh1 {[%clk 0:00:10]} 91. Kb6 {[%clk 0:00:04]}  Kb8 {[%clk 0:00:10]} 92. Rg2 {[%clk 0:00:03]}  Rb1+ {[%clk 0:00:09]} 93. Kc6 {[%clk 0:00:03]}  Ka7 {[%clk 0:00:09]} 94. Rg7+ {[%clk 0:00:03]}  Ka6 {[%clk 0:00:09]} 95. Kc7 {[%clk 0:00:04]}  Rc1 {[%clk 0:00:09]} 96. c6 {[%clk 0:00:04]}  Kb5 {[%clk 0:00:09]} 97. Rg5+ {[%clk 0:00:03]}  Ka6 {[%clk 0:00:09]} 98. Kd7 {[%clk 0:00:03]}  Kb6 {[%clk 0:00:10]} 99. Rg6 {[%clk 0:00:02]}  Rd1+ {[%clk 0:00:10]} 100. Kc8 {[%clk 0:00:02]}  Rc1 {[%clk 0:00:10]} 101. Kd7 {[%clk 0:00:03]}  Rd1+ {[%clk 0:00:08]} 102. Rd6 {[%clk 0:00:03]}  Rc1 {[%clk 0:00:08]} 103. c7+ {[%clk 0:00:02]}  Kb7 {[%clk 0:00:09]} 104. Kd8 {[%clk 0:00:01]}  Rxc7 {[%clk 0:00:09]} 105. Rd7 {[%clk 0:00:02]}  Rxd7+ {[%clk 0:00:09]} 106. Kxd7 {[%clk 0:00:03]} 1/2-1/2


[Site "https://www.chess.com"]

[Event "Titled Tuesday Blitz November 08 Late 2022"]
[White "Phillips, Rene"]
[Black "Alfaro, William"]
[WhiteFideId "2056275"]
[BlackFideId "6100457"]
[WhiteElo "1998"]
[BlackElo "2096"]
[Result "0-1"]
[Round "04"]
[TimeControl "180+1"]
[Date "2022.11.09"]
[WhiteClock "0:00:01"]
[BlackClock "0:01:39"]

1. Nf3 {[%clk 0:02:54]}  Nf6 {[%clk 0:02:59]} 2. d4 {[%clk 0:02:54]}  g6 {[%clk 0:02:59]} 3. Bf4 {[%clk 0:02:55]}  Bg7 {[%clk 0:02:59]} 4. e3 {[%clk 0:02:55]}  d6 {[%clk 0:02:58]} 5. h3 {[%clk 0:02:56]}  O-O {[%clk 0:02:58]} 6. Bc4 {[%clk 0:02:56]}  b6 {[%clk 0:02:55]} 7. O-O {[%clk 0:02:54]}  Bb7 {[%clk 0:02:55]} 8. Qe2 {[%clk 0:02:54]}  c5 {[%clk 0:02:55]} 9. c3 {[%clk 0:02:54]}  Nbd7 {[%clk 0:02:56]} 10. Ba6 {[%clk 0:02:54]}  Qc7 {[%clk 0:02:54]} 11. Nbd2 {[%clk 0:02:52]}  Rfe8 {[%clk 0:02:52]} 12. Rfd1 {[%clk 0:02:48]}  e5 {[%clk 0:02:51]} 13. dxe5 {[%clk 0:02:47]}  dxe5 {[%clk 0:02:52]} 14. Bg3 {[%clk 0:02:47]}  Nh5 {[%clk 0:02:47]} 15. Bh2 {[%clk 0:02:46]}  f5 {[%clk 0:02:45]} 16. Ng5 {[%clk 0:02:41]}  Ndf6 {[%clk 0:02:32]} 17. Ndf3 {[%clk 0:02:10]}  Bxa6 {[%clk 0:02:16]} 18. Qxa6 {[%clk 0:02:08]}  c4 {[%clk 0:02:13]} 19. Qb5 {[%clk 0:01:23]}  h6 {[%clk 0:02:13]} 20. Nxe5 {[%clk 0:00:57]}  hxg5 {[%clk 0:02:05]} 21. Nxg6 {[%clk 0:00:20]}  Qc5 {[%clk 0:02:04]} 22. Qa6 {[%clk 0:00:13]}  Kh7 {[%clk 0:01:49]} 23. Ne5 {[%clk 0:00:08]}  Rxe5 {[%clk 0:01:49]} 24. Bxe5 {[%clk 0:00:08]}  Qxe5 {[%clk 0:01:50]} 25. Qb7 {[%clk 0:00:08]}  Re8 {[%clk 0:01:48]} 26. Rd7 {[%clk 0:00:07]}  f4 {[%clk 0:01:43]} 27. Rf7 {[%clk 0:00:02]}  fxe3 {[%clk 0:01:42]} 28. fxe3 {[%clk 0:00:02]}  Qxe3+ {[%clk 0:01:42]} 29. Kh2 {[%clk 0:00:02]}  Qf4+ {[%clk 0:01:41]} 30. Kg1 {[%clk 0:00:01]}  Re2 {[%clk 0:01:39]} 0-1


[Site "https://www.chess.com"]

[Event "Titled Tuesday Blitz November 08 Late 2022"]
[White "Reprintsev, Alexander"]
[Black "Leitao, Rafael"]
[WhiteFideId "14100541"]
[BlackFideId "2101246"]
[WhiteElo "2230"]
[BlackElo "2609"]
[Result "0-1"]
[Round "04"]
[TimeControl "180+1"]
[Date "2022.11.09"]
[WhiteClock "0:00:01"]
[BlackClock "0:00:06"]

1. e4 {[%clk 0:03:00]}  c5 {[%clk 0:02:59]} 2. b3 {[%clk 0:03:00]}  Nc6 {[%clk 0:02:57]} 3. Bb2 {[%clk 0:03:00]}  d6 {[%clk 0:02:57]} 4. Bb5 {[%clk 0:02:59]}  Bd7 {[%clk 0:02:57]} 5. Ne2 {[%clk 0:02:59]}  Nf6 {[%clk 0:02:54]} 6. d3 {[%clk 0:02:59]}  g6 {[%clk 0:02:45]} 7. Bxf6 {[%clk 0:02:52]}  exf6 {[%clk 0:02:45]} 8. c4 {[%clk 0:02:47]}  Bg7 {[%clk 0:02:40]} 9. Nbc3 {[%clk 0:02:47]}  f5 {[%clk 0:02:38]} 10. O-O {[%clk 0:02:45]}  O-O {[%clk 0:02:37]} 11. Bxc6 {[%clk 0:02:42]}  bxc6 {[%clk 0:02:35]} 12. Qd2 {[%clk 0:02:39]}  Re8 {[%clk 0:02:26]} 13. Rad1 {[%clk 0:02:38]}  Qh4 {[%clk 0:02:01]} 14. Kh1 {[%clk 0:02:15]}  f4 {[%clk 0:01:54]} 15. Ng1 {[%clk 0:02:10]}  Qh5 {[%clk 0:01:37]} 16. Nce2 {[%clk 0:02:05]}  g5 {[%clk 0:01:37]} 17. d4 {[%clk 0:01:57]}  Re6 {[%clk 0:01:28]} 18. dxc5 {[%clk 0:01:39]}  Rh6 {[%clk 0:01:24]} 19. h3 {[%clk 0:01:38]}  Re8 {[%clk 0:01:07]} 20. f3 {[%clk 0:01:31]}  Be5 {[%clk 0:01:03]} 21. cxd6 {[%clk 0:01:29]}  f5 {[%clk 0:00:45]} 22. exf5 {[%clk 0:01:08]}  Bxf5 {[%clk 0:00:41]} 23. d7 {[%clk 0:00:58]}  Bxd7 {[%clk 0:00:34]} 24. Qxd7 {[%clk 0:00:54]}  Rhe6 {[%clk 0:00:34]} 25. Nd4 {[%clk 0:00:39]}  Rd6 {[%clk 0:00:31]} 26. Qxa7 {[%clk 0:00:36]}  Red8 {[%clk 0:00:31]} 27. Nge2 {[%clk 0:00:34]}  Qg6 {[%clk 0:00:28]} 28. Qc5 {[%clk 0:00:32]}  Qf6 {[%clk 0:00:28]} 29. Rfe1 {[%clk 0:00:25]}  Kf7 {[%clk 0:00:26]} 30. Nxc6 {[%clk 0:00:17]}  Rxc6 {[%clk 0:00:17]} 31. Qxc6 {[%clk 0:00:17]}  Qxc6 {[%clk 0:00:16]} 32. Rxd8 {[%clk 0:00:17]}  Qb6 {[%clk 0:00:17]} 33. Rd5 {[%clk 0:00:15]}  Qf2 {[%clk 0:00:17]} 34. Rg1 {[%clk 0:00:14]}  Qxe2 {[%clk 0:00:16]} 35. a4 {[%clk 0:00:14]}  Bb8 {[%clk 0:00:16]} 36. a5 {[%clk 0:00:14]}  Kf6 {[%clk 0:00:15]} 37. Rgd1 {[%clk 0:00:11]}  h5 {[%clk 0:00:13]} 38. R5d2 {[%clk 0:00:11]}  Qe3 {[%clk 0:00:13]} 39. Rd3 {[%clk 0:00:11]}  Qe2 {[%clk 0:00:13]} 40. b4 {[%clk 0:00:11]}  g4 {[%clk 0:00:12]} 41. fxg4 {[%clk 0:00:11]}  hxg4 {[%clk 0:00:12]} 42. hxg4 {[%clk 0:00:11]}  Qxg4 {[%clk 0:00:12]} 43. Rf1 {[%clk 0:00:11]}  Qe2 {[%clk 0:00:11]} 44. Rdf3 {[%clk 0:00:11]}  Qxc4 {[%clk 0:00:09]} 45. a6 {[%clk 0:00:10]}  Qxa6 {[%clk 0:00:09]} 46. g3 {[%clk 0:00:08]}  Qb7 {[%clk 0:00:07]} 47. gxf4 {[%clk 0:00:07]}  Qxb4 {[%clk 0:00:08]} 48. Kg2 {[%clk 0:00:07]}  Kf5 {[%clk 0:00:07]} 49. R1f2 {[%clk 0:00:08]}  Ba7 {[%clk 0:00:07]} 50. Re2 {[%clk 0:00:07]}  Bb8 {[%clk 0:00:07]} 51. Rff2 {[%clk 0:00:06]}  Qc4 {[%clk 0:00:06]} 52. Kg3 {[%clk 0:00:05]}  Qd3+ {[%clk 0:00:06]} 53. Kg2 {[%clk 0:00:05]}  Bxf4 {[%clk 0:00:06]} 54. Ra2 {[%clk 0:00:03]}  Qd5+ {[%clk 0:00:06]} 55. Kf1 {[%clk 0:00:04]}  Kg4 {[%clk 0:00:06]} 56. Rg2+ {[%clk 0:00:03]}  Bg3 {[%clk 0:00:06]} 57. Rad2 {[%clk 0:00:01]}  Qf3+ {[%clk 0:00:06]} 0-1


[Site "https://www.chess.com"]